bitfinex-derivatives/quotes_ETHF0:USTF0_20250520
["timestamp","ask_amount","ask_price","bid_price","bid_amount"]
[1747725608091,0.78835,2536.1,2536.0,4.5499]
[1747725608693,2.57545,2536.1,2536.0,4.5499]
[1747725608993,10.78325,2536.1,2536.0,2.74]
[1747725609802,0.78838,2536.0,2535.9,8.88e-06]
[1747725610101,0.78859,2535.3,2535.2,1.73316272]
[1747725610603,5.78859,2535.3,2535.2,1.73316272]
[1747725611096,6.09565456,2535.3,2535.2,1.73316272]
[1747725612105,0.78866,2535.1,2535.0,0.00590888]
[1747725613202,0.78866,2535.1,2535.0,2.74590888]
[1747725615706,1.7514,2535.2,2535.0,2.74590888]
[1747725615904,3.2078,2535.4,2535.0,2.74590888]
[1747725616210,0.78848,2535.7,2535.5,0.78852]
[1747725616402,0.78848,2535.7,2535.5,0.78851]
[1747725616609,1.8069,2535.7,2535.1,6.728]
[1747725616803,0.7885,2535.6,2535.4,0.78856]
[1747725617105,1.8069,2535.5,2535.4,0.78856]
[1747725617308,2.59543,2535.5,2535.4,0.78856]
[1747725617704,0.78856,2535.4,2535.3,0.78857]
[1747725618008,1.8069,2535.4,2535.3,0.78857]
[1747725618199,1.8069,2535.4,2535.3,3.52857]
[1747725618409,0.78852,2535.6,2535.3,3.52857]
[1747725618598,2.60319,2535.7,2535.5,0.78853]
[1747725618802,1.8147,2535.7,2535.6,0.7885]
[1747725619202,2.60318,2535.7,2535.5,3.52852]
[1747725619404,2.60318,2535.7,2535.6,1.78]
[1747725620504,0.7885,2535.6,2535.5,2.74]
[1747725620711,2.6032,2535.6,2535.5,2.74]
[1747725622117,7.6032,2535.6,2535.5,2.74]
[1747725623212,0.78856,2535.4,2535.3,0.08486477]
[1747725623414,3.99636,2535.4,2535.3,0.08486477]
[1747725623806,3.2078,2535.4,2535.3,0.87345477]
[1747725624007,3.99636,2535.4,2535.3,0.08486477]
[1747725624208,3.99636,2535.4,2535.3,2.82486477]
[1747725624611,8.99636,2535.4,2535.3,2.82486477]
[1747725624809,8.99636,2535.4,2535.3,9.36e-06]
[1747725625109,8.99636,2535.4,2535.3,0.08486477]
[1747725626603,3.2078,2535.4,2535.3,0.87345477]
[1747725627211,3.2078,2535.4,2535.3,3.61345477]
[1747725627612,5.70956,2535.8,2535.6,0.78847]
[1747725627904,2.50176,2535.8,2535.7,1.8581]
[1747725628106,0.78844,2535.8,2535.7,1.8581]
[1747725630917,0.78844,2535.8,2535.7,3.6462]
[1747725631817,0.78847,2535.7,2535.6,2.74]
[1747725632117,2.55187,2535.7,2535.6,2.74]
[1747725632416,0.7885,2535.6,2535.5,7.7766]
[1747725633614,0.7885,2535.6,2535.5,4.5688]
[1747725633822,0.7885,2535.6,2535.5,5.35733]
[1747725634211,0.78844,2535.8,2535.7,0.78845]
[1747725634415,1.8549,2536.0,2535.5,4.5688]
[1747725634816,0.78848,2535.7,2535.6,0.78848]
[1747725635010,0.78843,2535.9,2535.8,0.78841]
[1747725635215,5.0627,2536.2,2535.5,4.65366477]
[1747725635417,3.2078,2536.2,2535.6,11.63026]
[1747725635718,0.78836,2536.1,2536.0,0.78837]
[1747725636223,0.78836,2536.1,2536.0,3.52837]
[1747725636417,0.78833,2536.2,2536.1,0.78833]
[1747725636629,0.00590888,2536.4,2536.3,0.78828]
[1747725637223,0.79415888,2536.4,2536.3,3.52828]
[1747725637518,0.79415888,2536.4,2536.3,2.74]
[1747725641524,0.79415888,2536.4,2536.3,0.98047798]
[1747725642423,0.79415888,2536.4,2536.3,1.76875798]
[1747725642828,0.00590888,2536.4,2536.3,1.76875798]
[1747725643433,0.00590888,2536.4,2536.3,3.49115798]
[1747725643727,0.00590888,2536.4,2536.3,8.49115798]
[1747725644524,0.00590888,2536.4,2536.3,3.49115798]
[1747725644827,0.79415888,2536.4,2536.3,2.70287798]
[1747725645130,0.00590888,2536.4,2536.3,3.49115798]
[1747725646427,0.79415888,2536.4,2536.3,3.49115798]
[1747725646728,0.00590888,2536.4,2536.3,3.49115798]
[1747725647930,0.00590888,2536.4,2536.3,13.14715798]
[1747725649030,0.79415888,2536.4,2536.3,13.14715798]
[1747725649229,0.79415888,2536.4,2536.3,12.35887798]
[1747725649629,0.79415888,2536.4,2536.3,3.49115798]
[1747725649822,0.79415888,2536.4,2536.3,2.70287798]
[1747725650231,0.79415888,2536.4,2536.3,0.98047798]
[1747725650426,0.79415888,2536.4,2536.3,1.06534275]
[1747725650427,5.79415888,2536.4,2536.3,1.06534275]
[1747725650627,2.63425888,2536.4,2536.3,0.85058081]
[1747725651126,1.84600888,2536.4,2536.3,1.63886081]
[1747725651337,0.00590888,2536.4,2536.3,1.63886081]
[1747725651631,0.00590888,2536.4,2536.3,3.37386081]
[1747725652434,0.79415888,2536.4,2536.3,2.58558081]
[1747725652928,0.79415888,2536.4,2536.3,0.85058081]
[1747725654529,0.79415888,2536.4,2536.3,2.58558081]
[1747725655032,0.79415888,2536.4,2536.3,3.37386081]
[1747725655333,0.00590888,2536.4,2536.3,3.37386081]
[1747725656124,0.00590888,2536.4,2536.3,2.11720609]
[1747725656328,0.00590888,2536.4,2536.3,4.94207086]
[1747725657532,0.79415888,2536.4,2536.3,4.94207086]
[1747725657721,0.00590888,2536.4,2536.3,4.94207086]
[1747725658638,0.97129733,2537.0,2536.4,1.97059]
[1747725658829,0.97129733,2537.0,2536.9,0.7881]
[1747725659133,0.97129733,2537.0,2536.9,3.5281]
[1747725659534,2.82919733,2537.0,2536.9,3.5281]
[1747725660142,3.61726733,2537.0,2536.9,2.74]
[1747725660733,2.82919733,2537.0,2536.9,3.5281]
[1747725662141,3.61726733,2537.0,2536.9,3.5281]
[1747725662937,2.82919733,2537.0,2536.9,3.5281]
[1747725663235,1.8579,2537.0,2536.9,3.5281]
[1747725663638,0.78805,2537.1,2537.0,0.78807]
[1747725663837,0.78805,2537.1,2537.0,13.65087]
[1747725664042,0.00590888,2537.2,2537.1,0.78803]
[1747725664540,0.78803,2537.1,2537.0,5.9478]
[1747725664933,0.78803,2537.1,2537.0,2.74]
[1747725665139,0.78813,2536.8,2536.7,0.00590888]
[1747725666138,0.78808,2537.0,2536.7,0.00590888]
[1747725666340,0.7881,2536.9,2536.8,0.78813]
[1747725666534,3.21370888,2537.2,2536.7,0.00590888]
[1747725666535,0.78813,2536.8,2536.7,0.79404888]
[1747725668342,0.78813,2536.8,2536.7,0.00590888]
[1747725669244,3.21370888,2537.2,2537.0,0.78806]
[1747725669545,4.00172888,2537.2,2537.1,0.78803]
[1747725669751,0.00590888,2537.2,2537.1,0.78803]
[1747725672747,0.97129733,2537.8,2537.6,0.78786]
[1747725673145,0.97129733,2537.8,2537.7,0.78785]
[1747725673448,0.97129733,2537.8,2537.7,3.99565]
[1747725676650,0.97129733,2537.8,2537.7,8.99565]
[1747725677444,0.00590888,2538.0,2537.9,0.78779]
[1747725677751,0.81672013,2538.1,2538.0,0.78776]
[1747725677944,0.81672013,2538.1,2538.0,13.57056]
[1747725678144,0.32262013,2538.1,2538.0,16.31056]
[1747725679147,0.32262013,2538.1,2538.0,21.31056]
[1747725679350,0.00389902,2538.3,2538.2,0.78769]
[1747725679845,0.00389902,2538.3,2538.2,5.78769]
[1747725680042,0.9776966,2538.8,2538.2,5.78769]
[1747725680242,0.9776966,2538.8,2538.7,3.99534]
[1747725680542,0.9776966,2538.8,2538.7,13.56934]
[1747725680742,1.63945121,2539.3,2538.9,0.78748]
[1747725680948,1.63945121,2539.3,2539.2,3.99518]
[1747725681139,1.63945121,2539.3,2539.2,13.56918]
[1747725683544,1.63945121,2539.3,2539.2,12.7798]
[1747725683846,1.63945121,2539.3,2539.2,13.56718]
[1747725684652,1.63945121,2539.3,2539.2,12.7798]
[1747725684949,1.63945121,2539.3,2538.8,40.50549]
[1747725685146,0.78744,2539.0,2538.8,43.71329]
[1747725685449,0.78746,2539.0,2538.9,9.572]
[1747725685650,0.78748,2538.9,2538.8,39.718]
[1747725685849,0.78746,2539.0,2538.8,9.572]
[1747725686044,0.78743,2539.1,2538.8,9.572]
[1747725686346,0.78742,2539.1,2538.9,0.78747]
[1747725687046,1.63945121,2539.3,2538.8,9.572]
[1747725687253,0.78748,2538.9,2538.8,9.572]
[1747725687846,3.60790121,2539.3,2538.7,0.78752]
[1747725687847,0.78751,2538.8,2538.7,0.78752]
[1747725688048,3.2078,2539.1,2538.6,9.571]
[1747725688345,1.96847,2539.2,2538.6,9.571]
[1747725688546,1.96847,2539.2,2538.6,10.35855]
[1747725688744,0.78754,2538.7,2538.6,10.35855]
[1747725689752,0.78754,2538.7,2538.6,10.35857]
[1747725690950,0.7876,2538.5,2538.4,3.99542]
[1747725691150,0.7876,2538.5,2538.4,12.7788]
[1747725691951,0.7875,2538.9,2538.8,0.7875]
[1747725692143,3.2078,2539.1,2538.4,14.74782]
[1747725692343,0.7876,2538.5,2538.4,3.2078]
[1747725692742,0.7876,2538.5,2538.4,12.7778]
[1747725693652,0.7876,2538.5,2538.4,13.56543]
[1747725693849,3.2078,2539.1,2538.4,13.56543]
[1747725693850,0.78757,2538.7,2538.6,0.78757]
[1747725694044,0.78757,2538.6,2538.5,0.78758]
[1747725694348,0.78757,2538.6,2538.4,12.7778]
[1747725694349,0.7876,2538.5,2538.4,13.56542]
[1747725694549,0.7876,2538.5,2538.4,3.2078]
[1747725695055,0.78759,2538.6,2538.5,0.78759]
[1747725695354,0.7876,2538.5,2538.4,3.99541]
[1747725697048,0.7876,2538.5,2538.4,3.2078]
[1747725697957,5.17637,2539.1,2538.4,3.2078]
[1747725698457,3.99523,2539.1,2539.0,0.78744]
[1747725698652,0.78743,2539.1,2539.0,0.78744]
[1747725700257,1.96834,2539.4,2538.8,9.499]
[1747725700552,0.78748,2538.9,2538.8,9.499]
[1747725700951,0.78748,2538.9,2538.8,10.28651]
[1747725701154,0.78748,2538.9,2538.8,9.499]
[1747725704162,0.78748,2538.9,2538.8,14.7821]
[1747725704669,0.78748,2538.9,2538.8,5.2831]
[1747725705160,3.52748,2538.9,2538.8,5.2831]
[1747725707269,0.78748,2538.9,2538.8,5.2831]
[1747725707768,0.78746,2539.0,2538.9,0.78746]
[1747725707968,0.78746,2539.0,2538.9,2.50116]
[1747725708869,0.78746,2539.0,2538.9,1.7137]
[1747725709471,0.78743,2539.1,2539.0,0.78743]
[1747725710161,0.78744,2539.0,2538.9,2.50115]
[1747725710773,0.78744,2539.0,2538.9,1.7137]
[1747725711066,0.64843169,2539.5,2538.9,1.7137]
[1747725711365,0.64843169,2539.5,2539.4,0.78732]
[1747725711570,0.64843169,2539.5,2539.4,3.99512]
[1747725712062,0.64843169,2539.5,2539.4,6.73512]
[1747725713567,0.64843169,2539.5,2539.4,11.73512]
[1747725713761,3.90316573,2540.1,2539.9,0.78716]
[1747725713970,3.11603573,2540.1,2540.0,9.13953]
[1747725714362,3.90313573,2540.1,2540.0,8.3524]
[1747725714874,3.90313573,2540.1,2540.0,5.1446]
[1747725715171,3.11603573,2540.1,2540.0,5.1446]
[1747725715362,3.90313573,2540.1,2540.0,5.1446]
[1747725715561,3.90313573,2540.1,2540.0,5.13944706]
[1747725715766,8.90313573,2540.1,2540.0,5.13944706]
[1747725716364,8.90313573,2540.1,2540.0,4.05642706]
[1747725716572,8.90313573,2540.1,2540.0,3.41e-06]
[1747725717166,11.64313573,2540.1,2540.0,3.41e-06]
[1747725717868,21.13913573,2540.1,2540.0,3.41e-06]
[1747725718067,30.20003573,2540.1,2539.7,2.29e-06]
[1747725718273,3.995,2539.8,2539.7,2.29e-06]
[1747725718673,8.995,2539.8,2539.7,2.29e-06]
[1747725719171,11.735,2539.8,2539.7,2.29e-06]
[1747725720673,6.735,2539.8,2539.7,2.29e-06]
[1747725721068,3.5272,2539.8,2539.7,2.29e-06]
[1747725722173,0.7872,2539.8,2539.7,2.29e-06]
[1747725722877,0.91270793,2539.8,2539.7,2.29e-06]
[1747725723175,4.12050793,2539.8,2539.7,2.29e-06]
[1747725723674,4.12050793,2539.8,2539.7,1.75340229]
[1747725723867,0.91270793,2539.8,2539.7,1.75340229]
[1747725726975,2.61800793,2539.8,2539.7,1.75340229]
[1747725727477,10.82580793,2539.8,2539.7,0.82975229]
[1747725728187,13.56580793,2539.8,2539.7,0.82975229]
[1747725728382,13.56580793,2539.8,2539.2,12.6338]
[1747725728383,0.78735,2539.3,2539.2,12.6338]
[1747725728580,0.78735,2539.3,2539.2,9.426]
[1747725729280,3.52735,2539.3,2539.2,9.426]
[1747725731302,3.52735,2539.3,2539.2,10.21338]
[1747725731488,2.74,2539.3,2539.2,10.21338]
[1747725731677,3.52735,2539.3,2539.2,11.84758]
[1747725732185,0.78735,2539.3,2539.2,11.84758]
[1747725732786,0.78735,2539.3,2539.2,11.0602]
[1747725733183,3.65285793,2539.3,2539.2,11.0602]
[1747725733488,3.65285793,2539.3,2539.2,11.84758]
[1747725734187,0.91285793,2539.3,2539.2,11.84758]
[1747725734404,0.91285793,2539.3,2539.2,11.0602]
[1747725734591,0.78741,2539.1,2539.0,0.00590888]
[1747725734981,5.78741,2539.1,2539.0,0.00590888]
[1747725735280,5.28941,2539.1,2539.0,0.00590888]
[1747725735983,10.28941,2539.1,2539.0,0.00590888]
[1747725736183,0.78763,2538.4,2538.3,3.2078]
[1747725736385,0.78769,2538.2,2538.1,9.426]
[1747725737183,3.52769,2538.2,2538.1,9.426]
[1747725738287,3.52769,2538.2,2538.1,10.21372]
[1747725739086,2.74,2538.2,2538.1,10.21372]
[1747725739293,2.74,2538.2,2538.1,11.84602]
[1747725739483,2.74,2538.2,2538.1,13.59542]
[1747725740194,0.79354888,2538.4,2538.3,0.78766]
[1747725740696,0.78769,2538.2,2538.1,11.1754]
[1747725741988,0.78769,2538.2,2538.1,9.426]
[1747725742290,2.74,2538.2,2538.1,10.21372]
[1747725742484,3.52769,2538.2,2538.1,10.21372]
[1747725742794,3.52769,2538.2,2538.1,9.426]
[1747725744892,3.52769,2538.2,2538.1,11.1706]
[1747725746593,3.52769,2538.2,2538.1,11.95832]
[1747725747692,3.52769,2538.2,2538.1,11.1706]
[1747725748106,0.78775,2538.0,2537.9,3.21370888]
[1747725749192,3.52775,2538.0,2537.9,3.21370888]
[1747725750588,3.52775,2538.0,2537.9,0.00590888]
[1747725750795,17.95775,2538.0,2537.9,8.88e-06]
[1747725751393,58.75775,2538.0,2537.9,8.88e-06]
[1747725752295,49.32775,2538.0,2537.9,8.88e-06]
[1747725752495,3.52775,2538.0,2537.9,8.88e-06]
[1747725752684,2.74,2538.0,2537.9,0.78779888]
[1747725752884,3.52775,2538.0,2537.9,8.88e-06]
[1747725753088,5.24025,2538.0,2537.9,8.88e-06]
[1747725753284,2.50025,2538.0,2537.9,8.88e-06]
[1747725754299,2.50026,2538.0,2537.9,1.75270888]
[1747725754695,2.50026,2538.0,2537.9,8.88e-06]
[1747725755294,1.7125,2538.0,2537.9,8.88e-06]
[1747725755489,1.7125,2538.0,2537.9,0.78779888]
[1747725755490,2.50025,2538.0,2537.9,0.78779888]
[1747725755694,2.50025,2538.0,2537.9,8.88e-06]
[1747725755895,5.24025,2538.0,2537.9,8.88e-06]
[1747725756291,2.50025,2538.0,2537.9,8.88e-06]
[1747725758802,2.50025,2538.0,2537.9,0.08487365]
[1747725762292,2.50025,2538.0,2537.9,3.65e-06]
[1747725762498,10.70805,2538.0,2537.9,3.65e-06]
[1747725764917,5.70805,2538.0,2537.9,3.65e-06]
[1747725766018,0.78782,2537.8,2537.7,2.53e-06]
[1747725766217,0.7881,2536.9,2536.8,3.2078]
[1747725767217,0.7881,2536.9,2536.8,5.9478]
[1747725769714,5.26520888,2537.1,2536.8,5.9478]
[1747725770020,0.7881,2536.9,2536.8,6.82078477]
[1747725770226,0.7881,2536.9,2536.8,6.03266477]
[1747725771322,0.7881,2536.9,2536.8,7.73086477]
[1747725772220,0.7881,2536.9,2536.8,8.51899477]
[1747725772422,0.7881,2536.9,2536.8,7.73086477]
[1747725773122,0.7881,2536.9,2536.8,6.03266477]
[1747725773715,3.9959,2536.9,2536.8,2.82486477]
[1747725774217,4.31691911,2536.9,2536.8,2.82486477]
[1747725774722,9.31691911,2536.9,2536.8,1.98142477]
[1747725775016,0.78831,2536.2,2536.1,3.10910859]
[1747725776023,0.78838,2536.0,2535.9,0.00590888]
[1747725776921,3.5507,2536.2,2535.9,0.00590888]
[1747725777123,0.78832,2536.2,2536.0,0.78836]
[1747725778325,1.6769,2536.5,2536.0,2.74]
[1747725778526,0.78827,2536.4,2536.2,0.7883]
[1747725778824,0.78827,2536.4,2536.3,1.648]
[1747725779025,0.78827,2536.4,2536.3,3.457]
[1747725779227,0.78827,2536.4,2536.3,6.197]
[1747725783227,0.78827,2536.4,2536.3,6.197]
[1747725784222,0.78827,2536.4,2536.3,6.28186477]
[1747725784423,0.78827,2536.4,2536.3,2.82486477]
[1747725788225,0.78841,2535.9,2535.8,1.75512729]
[1747725789425,0.78847,2535.7,2535.6,1.73183928]
[1747725789625,0.78847,2535.7,2535.6,0.00393928]
[1747725790134,0.78846,2535.8,2535.6,0.00393928]
[1747725790435,2.54957,2535.7,2535.6,0.00393928]
[1747725790626,2.54957,2535.7,2535.6,1.74913928]
[1747725790932,2.54957,2535.7,2535.6,2.53763928]
[1747725791130,2.54957,2535.7,2535.6,1.74913928]
[1747725792735,0.78845,2535.8,2535.6,1.74913928]
[1747725792936,0.78847,2535.7,2535.6,1.74913928]
[1747725793137,2.50947,2535.7,2535.6,1.74913928]
[1747725793436,2.50947,2535.7,2535.6,0.00393928]
[1747725795536,1.721,2535.7,2535.6,0.00393928]
[1747725795735,3.2078,2536.6,2535.6,6.97519928]
[1747725795941,0.78839,2536.0,2535.9,0.7884]
[1747725796136,8.4433,2536.6,2535.8,9.304]
[1747725796137,3.2078,2536.3,2535.8,9.304]
[1747725796439,0.78839,2536.0,2535.9,0.78841]
[1747725796633,0.7884,2536.0,2535.8,9.304]
[1747725796836,0.7884,2536.0,2535.9,3.5648]
[1747725797034,0.7884,2536.0,2535.9,1.7851]
[1747725797236,0.78847,2535.7,2535.6,0.00393928]
[1747725797437,2.50022,2535.9,2535.8,0.78844]
[1747725797636,0.78844,2535.8,2535.7,2.56815]
[1747725798342,0.78844,2535.8,2535.7,1.7797]
[1747725798642,0.78844,2535.8,2535.6,5.31751928]
[1747725798643,0.78847,2535.7,2535.6,5.31751928]
[1747725799145,0.78872,2534.9,2534.8,3.2078]
[1747725799333,0.78872,2534.9,2534.8,1.7797]
[1747725799834,0.78872,2534.9,2534.7,0.78876]
[1747725800041,0.78872,2534.9,2534.8,0.78875]
[1747725800236,5.11260888,2535.1,2534.9,0.78872]
[1747725800436,0.78869,2535.0,2534.8,0.78874]
[1747725800745,5.11260888,2535.1,2534.7,3.2078]
[1747725800746,1.8093,2534.9,2534.7,3.2078]
[1747725800940,3.2078,2535.4,2534.7,3.2078]
[1747725800941,0.3983,2535.4,2534.8,0.999]
[1747725801143,3.11603573,2537.1,2536.8,3.2078]
[1747725801444,1.30812872,2537.7,2537.6,0.78788]
[1747725801636,0.78752,2538.8,2537.7,1.96963]
[1747725801837,1.8093,2538.4,2538.3,0.78766]
[1747725802042,1.8093,2538.4,2538.3,3.2078]
[1747725802241,1.8093,2538.4,2538.3,5.9478]
[1747725803345,2.59693,2538.4,2538.3,5.9478]
[1747725804943,1.8093,2538.4,2538.3,5.9478]
[1747725807753,2.59693,2538.4,2538.3,5.9478]
[1747725807948,7.59693,2538.4,2538.3,5.9478]
[1747725809458,2.59693,2538.4,2538.3,5.9478]
[1747725810555,2.59693,2538.4,2538.1,0.00590888]
[1747725810556,0.78769,2538.2,2538.1,0.00590888]
[1747725810853,10.08769,2538.2,2538.1,0.00590888]
[1747725811057,15.08769,2538.2,2538.1,0.00590888]
[1747725812257,0.78769,2538.2,2538.1,0.00590888]
[1747725813550,0.78769,2538.2,2538.1,1.79760888]
[1747725815661,1.7362,2538.5,2538.1,5.87797365]
[1747725815958,0.78766,2538.3,2538.1,5.87797365]
[1747725816163,0.78766,2538.3,2538.2,1.6756]
[1747725817368,0.78769,2538.2,2538.1,2.83077365]
[1747725817557,2.54769,2538.2,2538.1,2.83077365]
[1747725818260,2.54769,2538.2,2538.1,0.09077365]
[1747725819466,5.75549,2538.2,2538.1,0.09077365]
[1747725819667,10.75549,2538.2,2538.1,0.09077365]
[1747725820967,0.78772,2538.1,2538.0,1.07248011]
[1747725821266,5.96272,2538.1,2538.0,1.07248011]
[1747725821458,10.96272,2538.1,2538.0,1.07248011]
[1747725822367,5.96272,2538.1,2538.0,1.07248011]
[1747725824868,15.21272,2538.1,2538.0,1.07248011]
[1747725825063,0.78771,2538.2,2538.0,1.07248011]
[1747725825269,0.78771,2538.2,2538.1,1.6867]
[1747725825869,0.78771,2538.2,2538.1,1.77156477]
[1747725829272,1.7385,2538.4,2538.1,1.77156477]
[1747725829469,0.00590888,2538.6,2538.2,0.78767]
[1747725829672,0.78763,2538.4,2538.3,1.8084]
[1747725830067,0.78763,2538.4,2538.3,4.5484]
[1747725835982,0.78763,2538.4,2538.3,5.33606]
[1747725836176,0.78763,2538.4,2538.3,4.5484]
[1747725837982,0.78763,2538.4,2538.3,5.33606]
[1747725838182,0.78763,2538.4,2538.3,4.5484]
[1747725839581,0.78763,2538.4,2538.3,2.74]
[1747725840279,2.47593,2538.4,2538.3,2.74]
[1747725841583,0.00590888,2538.6,2538.3,2.74]
[1747725841773,0.78763,2538.4,2538.3,2.74]
[1747725845779,2.55603,2538.4,2538.3,2.74]
[1747725845993,0.78763,2538.4,2538.3,2.74]
[1747725846292,0.78763,2538.4,2538.3,2.82486477]
[1747725849589,2.49503,2538.4,2538.3,2.82486477]
[1747725850090,2.62060243,2538.4,2538.3,2.82486477]
[1747725853390,0.12557243,2538.4,2538.3,17.81652477]
[1747725853685,1.62133891,2538.8,2538.7,0.78754]
[1747725853886,1.62133891,2538.8,2538.7,3.99534]
[1747725854990,1.36200457,2538.9,2538.8,0.78751]
[1747725855186,3.08677863,2539.4,2539.1,0.78741]
[1747725855389,5.32961146,2539.4,2539.1,3.99521]
[1747725856088,5.33552034,2539.4,2539.1,3.99521]
[1747725856490,2.24874171,2539.4,2539.1,9.03371]
[1747725859794,0.65885856,2539.4,2539.3,0.78735]
[1747725860192,0.65885856,2539.4,2539.3,3.52735]
[1747725860397,3.13487856,2539.4,2539.3,2.74]
[1747725860596,2.34755856,2539.4,2539.3,3.52735]
[1747725860899,0.65885856,2539.4,2539.3,3.52735]
[1747725861203,7.93407863,2540.1,2539.9,0.78717]
[1747725861402,10.51588863,2540.1,2539.9,0.78717]
[1747725861594,4.88147863,2540.1,2540.0,0.78713]
[1747725861793,1.7947,2540.1,2539.8,3.6261]
[1747725861991,0.78715,2540.0,2539.8,1.8124]
[1747725862197,1.7947,2539.9,2539.8,4.5524]
[1747725864002,2.58187,2539.9,2539.8,2.74]
[1747725875015,1.968,2539.8,2539.1,4.8442]
[1747725875316,3.2078,2539.3,2539.1,2.30015089]
[1747725875518,1.6911,2539.2,2539.1,2.30015089]
[1747725875715,5.0366,2539.2,2539.1,2.30015089]
[1747725876113,5.0366,2539.2,2539.0,2.74]
[1747725878017,5.0366,2539.2,2539.0,4.4832]
[1747725880219,5.0366,2539.2,2539.0,2.74]
[1747725882218,3.2078,2539.1,2539.0,2.74]
[1747725882416,14.0044,2539.1,2539.0,1.55569094]
[1747725882617,4.8524,2539.1,2539.0,1.55569094]
[1747725884122,1.6446,2539.1,2539.0,1.55569094]
[1747725884324,4.8524,2539.1,2539.0,1.55569094]
[1747725885026,1.6446,2539.1,2539.0,1.55569094]
[1747725886424,4.8524,2539.1,2539.0,1.55569094]
[1747725887828,1.6446,2539.1,2539.0,1.55569094]
[1747725888030,4.8524,2539.1,2539.0,1.55569094]
[1747725888227,1.6446,2539.1,2539.0,1.55569094]
[1747725889633,1.6446,2539.1,2539.0,3.28989094]
[1747725889827,1.6446,2539.1,2539.0,3.37475571]
[1747725891429,3.2078,2539.2,2539.0,3.37475571]
[1747725893237,4.18533087,2539.4,2539.0,3.37475571]
[1747725894623,5.92193087,2539.4,2539.0,3.37475571]
[1747725895339,4.18533087,2539.4,2539.0,3.37475571]
[1747725897341,4.18533087,2539.4,2539.1,0.78742]
[1747725897342,0.78736,2539.3,2539.1,0.78742]
[1747725897538,4.97268087,2539.4,2539.2,2.48679]
[1747725897738,4.97268087,2539.4,2539.3,1.6994]
[1747725898143,4.97268087,2539.4,2539.3,4.4394]
[1747725898642,4.18533087,2539.4,2539.3,6.91776]
[1747725898945,0.97753087,2539.4,2539.3,6.91776]
[1747725899244,0.97753087,2539.4,2539.3,11.91776]
[1747725899636,0.97753087,2539.4,2539.3,13.59206]
[1747725900646,1.30269911,2539.7,2539.6,0.78727]
[1747725900847,1.30269911,2539.7,2539.6,3.99507]
[1747725901042,1.30269911,2539.7,2539.3,11.0125]
[1747725901247,0.78733,2539.4,2539.3,7.8047]
[1747725901748,0.78733,2539.4,2539.3,6.1304]
[1747725902048,0.78733,2539.4,2539.3,2.74]
[1747725902446,5.78733,2539.4,2539.3,0.77796912]
[1747725903243,0.78743,2539.1,2539.0,0.08486477]
[1747725904145,5.99253,2539.1,2539.0,2.82486477]
[1747725907251,3.4354,2539.1,2539.0,2.82486477]
[1747725907447,3.5609423,2539.1,2539.0,4.60396477]
[1747725907850,4.3483723,2539.1,2539.0,4.60396477]
[1747725908045,4.3483723,2539.1,2539.0,2.82486477]
[1747725910145,7.5561723,2539.1,2539.0,2.82486477]
[1747725915254,11.7687423,2539.1,2537.7,3.2078]
[1747725915451,3.2078,2538.2,2537.9,0.78778]
[1747725915652,3.2078,2538.2,2538.1,0.78774]
[1747725918849,3.2078,2538.2,2538.1,2.56324]
[1747725919454,3.9955,2538.2,2538.1,1.7755]
[1747725919651,3.2078,2538.2,2538.1,2.56324]
[1747725919847,3.2078,2538.2,2538.1,7.56324]
[1747725920160,0.00590888,2538.4,2538.3,0.78767]
[1747725921159,0.00590888,2538.4,2538.3,3.52767]
[1747725922453,0.00590888,2538.4,2538.3,17.62767]
[1747725922855,0.00590888,2538.4,2538.3,19.29927]
[1747725923751,1.30269911,2538.6,2538.5,0.78761]
[1747725924053,1.6271451,2538.9,2538.5,3.2078]
[1747725924261,1.6271451,2538.9,2538.8,0.78752]
[1747725924558,1.6271451,2538.9,2538.8,13.09532]
[1747725924758,0.95684516,2538.9,2538.8,18.09532]
[1747725925261,0.95684516,2538.9,2538.8,22.52402]
[1747725925759,0.00590888,2539.1,2539.0,0.78746]
[1747725926153,0.00590888,2539.1,2539.0,3.52746]
[1747725931362,0.79333888,2539.1,2539.0,2.74]
[1747725931665,4.00113888,2539.1,2539.0,2.74]
[1747725932157,9.00113888,2539.1,2539.0,2.74]
[1747725932355,10.69483888,2539.1,2539.0,2.74]
[1747725933462,4.90740888,2539.1,2539.0,2.74]
[1747725933956,5.69483888,2539.1,2539.0,2.74]
[1747725936461,5.69483888,2539.1,2539.0,2.82486477]
[1747725936462,5.82038269,2539.1,2539.0,2.82486477]
[1747725939262,2.61258269,2539.1,2539.0,2.82486477]
[1747725939463,5.82038269,2539.1,2539.0,2.82486477]
[1747725942874,10.82038269,2539.1,2539.0,1.61015678]
[1747725943373,0.78767,2538.3,2538.2,1.8247]
[1747725943972,2.60247,2538.3,2538.1,2.47811]
[1747725944474,0.7877,2538.2,2538.1,1.6904]
[1747725944668,2.6025,2538.2,2538.0,12.57076]
[1747725944869,2.6025,2538.2,2538.0,14.26116]
[1747725945174,2.60251,2538.2,2538.0,14.26116]
[1747725946576,0.78774,2538.1,2538.0,14.26116]
[1747725946875,2.58474,2538.1,2538.0,14.26116]
[1747725947076,1.7457,2538.3,2538.2,0.7877]
[1747725947369,5.0048,2538.4,2538.3,0.78767]
[1747725947573,0.7876,2538.6,2538.0,15.44275]
[1747725947574,1.7931,2538.6,2538.5,0.78761]
[1747725948171,1.7931,2538.6,2538.5,3.52761]
[1747725948569,0.78758,2538.6,2538.5,3.52761]
[1747725948773,5.79236,2538.7,2538.6,0.78758]
[1747725948974,0.78758,2538.6,2538.5,2.74]
[1747725949175,2.56688,2538.6,2538.5,2.74]
[1747725949373,0.78758,2538.6,2538.5,4.4546]
[1747725949570,3.2078,2538.7,2538.6,0.78758]
[1747725949773,5.6366331,2539.1,2538.9,0.78749]
[1747725949976,1.6413831,2539.1,2539.0,2.50206]
[1747725950171,1.6413831,2539.1,2539.0,5.24206]
[1747725951577,0.00590888,2539.1,2539.0,5.24206]